fUST/lending_fUST_20250614
["ID","MTS","AMOUNT","RATE_DAILY","PERIOD"]
[365714940,1749845434512,-500.0,0.000214,2]
[365714941,1749845434522,-500.0,0.000214,2]
[365714942,1749845434533,-500.0,0.000214,2]
[365714943,1749845434542,-4541.27,0.000214,2]
[365714944,1749845434552,-500.0,0.000214,2]
[365714945,1749845434561,-506.45617297,0.000214,2]
[365714946,1749845434571,-500.0,0.000214,2]
[365714947,1749845434580,-724.26915196,0.00021458,2]
[365714948,1749845434589,-19500.70174186,0.00021543,2]
[365714949,1749845434598,-574.85,0.00021641,4]
[365714950,1749845434608,-574.85,0.00021642,4]
[365714951,1749845434618,-500.0,0.00021642,3]
[365714952,1749845434628,-460.0,0.00021643,4]
[365714953,1749845434637,-400.0,0.00021643,4]
[365714954,1749845434646,-455.83559669,0.00021643,4]
[365714955,1749845434655,-460.0,0.00021643,4]
[365714956,1749845434664,-440.0,0.00021643,4]
[365714957,1749845434673,-460.0,0.00021643,4]
[365714958,1749845434683,-460.0,0.00021643,4]
[365714959,1749845434692,-460.0,0.00021643,4]
[365714960,1749845434702,-460.0,0.00021643,4]
[365714961,1749845434712,-460.0,0.00021643,4]
[365714962,1749845434722,-460.0,0.00021643,4]
[365714963,1749845434732,-460.0,0.00021643,4]
[365714964,1749845434741,-460.0,0.00021643,4]
[365714965,1749845434750,-460.0,0.00021643,4]
[365714966,1749845434759,-160.0,0.00021643,4]
[365714967,1749845434769,-460.0,0.00021643,4]
[365714968,1749845434779,-376.91549475,0.00021643,4]
[365714969,1749845434790,-370.0,0.00021643,4]
[365714970,1749845434802,-460.0,0.00021643,2]
[365714971,1749845434811,-460.0,0.00021643,4]
[365714972,1749845434821,-460.0,0.00021643,4]
[365714973,1749845434831,-446.49505541,0.00021643,4]
[365714974,1749845434840,-460.0,0.00021643,4]
[365714975,1749845434850,-460.0,0.00021643,4]
[365714976,1749845434860,-460.0,0.00021643,4]
[365714977,1749845434870,-460.0,0.00021643,4]
[365714978,1749845434879,-1821.36,0.00021643,4]
[365714979,1749845434889,-1165.77,0.00021643,4]
[365714980,1749845434899,-839.73,0.00021643,4]
[365714981,1749845434909,-460.0,0.00021643,4]
[365714982,1749845434919,-1933.14,0.00021643,4]
[365714983,1749845434929,-460.0,0.00021643,4]
[365714984,1749845434938,-460.0,0.00021643,4]
[365714985,1749845434948,-460.0,0.00021643,4]
[365714986,1749845434957,-460.0,0.00021643,4]
[365714987,1749845434967,-460.0,0.00021643,4]
[365714988,1749845434977,-460.0,0.00021643,4]
[365714989,1749845434987,-460.0,0.00021643,4]
[365714990,1749845434996,-682.28,0.00021643,4]
[365714991,1749845435006,-270.0427032,0.00021643,4]
[365714992,1749845435016,-495.45,0.00021643,4]
[365714993,1749845435026,-460.0,0.00021643,4]
[365714994,1749845435035,-460.0,0.00021643,4]
[365714995,1749845435044,-460.0,0.00021643,4]
[365714996,1749845435054,-460.0,0.00021643,4]
[365714997,1749845435063,-460.0,0.00021643,4]
[365714998,1749845435074,-460.0,0.00021643,4]
[365714999,1749845435083,-570.0,0.00021643,4]
[365715000,1749845435093,-460.0,0.00021643,4]
[365715001,1749845435102,-460.0,0.00021643,4]
[365715002,1749845435111,-460.0,0.00021643,4]
[365715003,1749845435205,-924.35,0.00021643,4]
[365715004,1749845435215,-460.0,0.00021643,4]
[365715005,1749845435226,-333.61321805,0.00021643,4]
[365715006,1749845435237,-400.0,0.00021643,4]
[365715007,1749845435251,-460.0,0.00021643,4]
[365715008,1749845435259,-460.0,0.00021643,4]
[365715009,1749845435269,-460.0,0.00021643,4]
[365715010,1749845435278,-781.06,0.00021643,4]
[365715011,1749845435288,-460.0,0.00021643,4]
[365715012,1749845435298,-1397.18,0.00021643,4]
[365715013,1749845435308,-321.78,0.00021643,4]
[365715014,1749845435317,-460.0,0.00021643,4]
[365715015,1749845435327,-460.0,0.00021643,4]
[365715016,1749845435336,-460.0,0.00021643,4]
[365715017,1749845435346,-1142.35,0.00021643,4]
[365715018,1749845435355,-460.0,0.00021643,4]
[365715019,1749845435364,-6689.93,0.00021643,4]
[365715020,1749845435374,-460.0,0.00021643,4]
[365715021,1749845435383,-460.0,0.00021643,4]
[365715022,1749845435392,-1821.09,0.00021643,4]
[365715023,1749845435402,-460.0,0.00021643,4]
[365715024,1749845435411,-460.0,0.00021643,4]
[365715025,1749845435420,-1133.49,0.00021643,4]
[365715026,1749845435430,-2189.69,0.00021643,4]
[365715027,1749845435440,-460.0,0.00021643,4]
[365715028,1749845435449,-460.0,0.00021643,4]
[365715029,1749845435459,-1115.91,0.00021643,4]
[365715030,1749845435468,-3119.30591656,0.000219,6]
[365715031,1749845435477,-574.85,0.00021908,4]
[365715032,1749845435487,-724.26915196,0.00021915,2]
[365715033,1749845435496,-574.85,0.00021916,4]
[365715034,1749845435505,-500.0,0.00021916,2]
[365715035,1749845435514,-500.0,0.00021916,2]
[365715036,1749845435524,-500.0,0.00021916,2]
[365715037,1749845435533,-200.0,0.00021917,2]
[365715038,1749845435543,-460.0,0.00021917,4]
[365715039,1749845435552,-593.24690289,0.00021917,4]
[365715040,1749845435561,-460.0,0.00021917,4]
[365715041,1749845435570,-460.0,0.00021917,4]
[365715042,1749845435579,-460.0,0.00021917,4]
[365715043,1749845435589,-460.0,0.00021917,4]
[365715044,1749845435598,-460.0,0.00021917,4]
[365715045,1749845435608,-430.0,0.00021917,4]
[365715046,1749845435617,-558.85178796,0.00021917,4]
[365715047,1749845435626,-460.0,0.00021917,4]
[365715048,1749845435636,-460.0,0.00021917,4]
[365715049,1749845435645,-500.0,0.00021917,2]
[365715050,1749845435654,-460.0,0.00021917,2]
[365715051,1749845435664,-460.0,0.00021917,4]
[365715052,1749845435673,-460.0,0.00021917,4]
[365715053,1749845435682,-508.09194928,0.00021917,4]
[365715054,1749845435691,-460.0,0.00021917,4]
[365715055,1749845435700,-494.89813927,0.00021917,4]
[365715056,1749845435709,-460.0,0.00021917,4]
[365715057,1749845435719,-1821.36,0.00021917,4]
[365715058,1749845435728,-1165.77,0.00021917,4]
[365715059,1749845435738,-839.73,0.00021917,4]
[365715060,1749845435747,-460.0,0.00021917,4]
[365715061,1749845435757,-1933.14,0.00021917,4]
[365715062,1749845435766,-460.0,0.00021917,4]
[365715063,1749845435775,-460.0,0.00021917,4]
[365715064,1749845435784,-460.0,0.00021917,4]
[365715065,1749845435793,-460.0,0.00021917,4]
[365715066,1749845435803,-400.0,0.00021917,4]
[365715067,1749845435813,-460.0,0.00021917,4]
[365715068,1749845435822,-370.06,0.00021917,4]
[365715069,1749845435831,-682.28,0.00021917,4]
[365715070,1749845435840,-495.45,0.00021917,4]
[365715071,1749845435849,-460.0,0.00021917,4]
[365715072,1749845435859,-460.0,0.00021917,4]
[365715073,1749845435869,-460.0,0.00021917,4]
[365715074,1749845435878,-460.0,0.00021917,4]
[365715075,1749845435887,-460.0,0.00021917,4]
[365715076,1749845435897,-460.0,0.00021917,4]
[365715077,1749845435906,-460.0,0.00021917,4]
[365715078,1749845435915,-460.0,0.00021917,4]
[365715079,1749845435925,-924.35,0.00021917,4]
[365715080,1749845435934,-206.86,0.00021917,4]
[365715081,1749845435943,-460.0,0.00021917,4]
[365715082,1749845435952,-460.0,0.00021917,4]
[365715083,1749845435962,-460.0,0.00021917,4]
[365715084,1749845435971,-781.06,0.00021917,4]
[365715085,1749845435980,-460.0,0.00021917,4]
[365715086,1749845435989,-1397.18,0.00021917,4]
[365715087,1749845435999,-460.0,0.00021917,4]
[365715088,1749845436008,-460.0,0.00021917,4]
[365715089,1749845436017,-460.0,0.00021917,4]
[365715090,1749845436027,-1142.35,0.00021917,4]
[365715091,1749845436036,-460.0,0.00021917,4]
[365715092,1749845436045,-6689.93,0.00021917,4]
[365715093,1749845436054,-460.0,0.00021917,4]
[365715094,1749845436063,-460.0,0.00021917,4]
[365715095,1749845436073,-1821.09,0.00021917,4]
[365715096,1749845436082,-460.0,0.00021917,4]
[365715097,1749845436091,-460.0,0.00021917,4]
[365715098,1749845436100,-1133.49,0.00021917,4]
[365715099,1749845436109,-2189.69,0.00021917,4]
[365715100,1749845436118,-460.0,0.00021917,4]
[365715101,1749845436128,-460.0,0.00021917,4]
[365715102,1749845436137,-1115.91,0.00021917,4]
[365715103,1749845436146,-400.47083913,0.00021918,7]
[365715104,1749845436155,-504.97186885,0.00021948,2]
[365715105,1749845436165,-1081.8067129,0.00021948,2]
[365715106,1749845436174,-500.0,0.00021973,2]
[365715107,1749845436183,-500.0,0.00021973,2]
[365715108,1749845436192,-500.0,0.00021973,2]
[365715109,1749845436202,-614.97389559,0.00021973,2]
[365715110,1749845436211,-143140.66,0.00022,7]
[365715111,1749845436220,-189.0,0.00022,2]
[365715112,1749845436229,-3119.30591631,0.00022003,6]
[365715113,1749845436240,-3119.30591631,0.00022107,6]
[365715114,1749845436251,-420.0,0.00022111,2]
[365715115,1749845436260,-574.85,0.0002219,4]
[365715116,1749845436270,-500.0,0.0002219,4]
[365715117,1749845436278,-414.31475741,0.00022191,4]
[365715118,1749845436288,-460.0,0.00022191,4]
[365715119,1749845436297,-460.0,0.00022191,4]
[365715120,1749845436307,-525.32,0.00022191,4]
[365715121,1749845436318,-460.0,0.00022191,4]
[365715122,1749845436327,-460.0,0.00022191,4]
[365715123,1749845436336,-460.0,0.00022191,4]
[365715124,1749845436345,-460.0,0.00022191,4]
[365715125,1749845436356,-460.0,0.00022191,2]
[365715126,1749845436366,-460.0,0.00022191,4]
[365715127,1749845436376,-460.0,0.00022191,4]
[365715128,1749845436386,-460.0,0.00022191,4]
[365715129,1749845436395,-460.0,0.00022191,4]
[365715130,1749845436404,-1821.36,0.00022191,4]
[365715131,1749845436413,-1165.77,0.00022191,4]
[365715132,1749845436422,-839.73,0.00022191,4]
[365715133,1749845436431,-460.0,0.00022191,4]
[365715134,1749845436440,-1933.14,0.00022191,4]
[365715135,1749845436450,-460.0,0.00022191,4]
[365715136,1749845436459,-392.20116845,0.00022191,4]
[365715137,1749845436469,-460.0,0.00022191,4]
[365715138,1749845436478,-460.0,0.00022191,4]
[365715139,1749845436488,-460.0,0.00022191,4]
[365715140,1749845436498,-682.28,0.00022191,4]
[365715141,1749845436507,-495.45,0.00022191,4]
[365715142,1749845436517,-460.0,0.00022191,4]
[365715143,1749845436526,-460.0,0.00022191,4]
[365715144,1749845436535,-460.0,0.00022191,4]
[365715145,1749845436544,-460.0,0.00022191,4]
[365715146,1749845436553,-460.0,0.00022191,4]
[365715147,1749845436563,-460.0,0.00022191,4]
[365715148,1749845436572,-460.0,0.00022191,4]
[365715149,1749845436582,-924.35,0.00022191,4]
[365715150,1749845436591,-460.0,0.00022191,4]
[365715151,1749845436600,-460.0,0.00022191,4]
[365715152,1749845436609,-554.02315985,0.00022191,4]
[365715153,1749845436618,-781.06,0.00022191,4]
[365715154,1749845436627,-460.0,0.00022191,4]
[365715155,1749845436637,-1397.18,0.00022191,4]
[365715156,1749845436646,-460.0,0.00022191,4]
[365715157,1749845436656,-460.0,0.00022191,4]
[365715158,1749845436665,-460.0,0.00022191,4]
[365715159,1749845436674,-1142.35,0.00022191,4]
[365715160,1749845436683,-460.0,0.00022191,4]
[365715161,1749845436693,-6689.93,0.00022191,4]
[365715162,1749845436703,-460.0,0.00022191,4]
[365715163,1749845436712,-460.0,0.00022191,4]
[365715164,1749845436721,-1821.09,0.00022191,4]
[365715165,1749845436732,-460.0,0.00022191,4]
[365715166,1749845436742,-1133.49,0.00022191,4]
[365715167,1749845436751,-2189.69,0.00022191,4]
[365715168,1749845436760,-460.0,0.00022191,4]
[365715169,1749845436771,-460.0,0.00022191,4]
[365715170,1749845436781,-1115.91,0.00022191,4]
[365715171,1749845436791,-2300.41,0.000222,7]
[365715172,1749845436802,-161.95301122,0.000222,69]
[365715173,1749845436812,-3119.30591631,0.0002221,6]
[365715174,1749845436822,-319.0,0.00022214,2]
[365715175,1749845436833,-1392.0,0.00022244,2]
[365715176,1749845436842,-574.85,0.00022313,4]
[365715177,1749845436850,-3119.30591631,0.00022314,7]
[365715178,1749845436860,-724.26915196,0.00022373,2]
[365715179,1749845436869,-3119.30591631,0.00022417,7]
[365715180,1749845436878,-703.08,0.00022455,3]
[365715181,1749845436887,-827.06,0.00022455,3]
[365715182,1749845436896,-413.54,0.00022455,3]
[365715183,1749845436905,-574.85,0.00022464,4]
[365715184,1749845436914,-460.0,0.00022465,4]
[365715185,1749845436924,-460.0,0.00022465,4]
[365715186,1749845436933,-460.0,0.00022465,4]
[365715187,1749845436942,-460.0,0.00022465,4]
[365715188,1749845436953,-460.0,0.00022465,2]
[365715189,1749845436963,-460.0,0.00022465,4]
[365715190,1749845436972,-460.0,0.00022465,4]
[365715191,1749845436982,-460.0,0.00022465,4]
[365715192,1749845436991,-460.0,0.00022465,4]
[365715193,1749845437001,-1821.36,0.00022465,4]
[365715194,1749845437010,-1165.77,0.00022465,4]
[365715195,1749845437101,-839.73,0.00022465,4]
[365715196,1749845437111,-460.0,0.00022465,4]
[365715197,1749845437121,-1933.14,0.00022465,4]
[365715198,1749845437130,-460.0,0.00022465,4]
[365715199,1749845437140,-460.0,0.00022465,4]
[365715200,1749845437149,-460.0,0.00022465,4]
[365715201,1749845437158,-465.85,0.00022465,4]
[365715202,1749845437167,-682.28,0.00022465,4]
[365715203,1749845437176,-495.45,0.00022465,4]
[365715204,1749845437185,-243.36710223,0.00022465,4]
[365715213,1749845438603,-460.0,0.00021095,4]
[365715214,1749845438613,-270.0,0.00021095,4]
[365715215,1749845438624,-517.8,0.00021369,4]
[365715216,1749845438634,-166.0,0.00022,2]
[365715217,1749845438643,-216.63289777,0.00022465,4]
[365715219,1749845438654,-200.0,0.00022465,4]
[365715221,1749845438664,-460.0,0.00022465,4]
[365715222,1749845438673,-370.28745951,0.00022465,4]
[365715223,1749845438683,-460.0,0.00022465,4]
[365715224,1749845438692,-460.0,0.00022465,4]
[365715225,1749845438701,-410.0,0.00022465,4]
[365715226,1749845438711,-924.35,0.00022465,4]
[365715228,1749845438720,-460.0,0.00022465,4]
[365715229,1749845438729,-340.0,0.00022465,4]
[365715231,1749845438741,-781.06,0.00022465,4]
[365715233,1749845438750,-460.0,0.00022465,4]
[365715235,1749845438759,-1397.18,0.00022465,4]
[365715236,1749845438769,-460.0,0.00022465,4]
[365715237,1749845438779,-460.0,0.00022465,4]
[365715238,1749845438790,-460.0,0.00022465,4]
[365715239,1749845438800,-1142.35,0.00022465,4]
[365715240,1749845438810,-460.0,0.00022465,4]
[365715241,1749845438819,-6689.93,0.00022465,4]
[365715242,1749845438829,-460.0,0.00022465,4]
[365715244,1749845438838,-460.0,0.00022465,4]
[365715246,1749845438848,-1821.09,0.00022465,4]
[365715248,1749845438858,-460.0,0.00022465,4]
[365715249,1749845438867,-1133.49,0.00022465,4]
[365715250,1749845438877,-2189.69,0.00022465,4]
[365715251,1749845438886,-460.0,0.00022465,4]
[365715252,1749845438896,-460.0,0.00022465,4]
[365715253,1749845438905,-1115.91,0.00022465,4]
[365715254,1749845438915,-500.0,0.00022466,2]
[365715255,1749845438925,-472.08696616,0.00022466,2]
[365715256,1749845438935,-500.0,0.00022466,2]
[365715257,1749845438944,-500.0,0.00022466,2]
[365715258,1749845438954,-500.0,0.00022466,2]
[365715259,1749845438963,-500.0,0.00022466,2]
[365715260,1749845438973,-500.0,0.00022466,2]
[365715261,1749845438983,-500.0,0.00022466,2]
[365715262,1749845438996,-500.0,0.00022466,2]
[365715263,1749845439005,-500.0,0.00022466,2]
[365715264,1749845439014,-500.0,0.00022466,2]
[365715265,1749845439023,-500.0,0.00022466,2]
[365715266,1749845439033,-500.0,0.00022466,2]
[365715267,1749845439043,-500.0,0.00022466,2]
[365715269,1749845439052,-423.90442592,0.00022466,2]
[365715271,1749845439061,-500.0,0.00022466,2]
[365715273,1749845439070,-500.0,0.00022466,2]
[365715275,1749845439079,-500.0,0.00022466,2]
[365715277,1749845439089,-574.85,0.00022499,4]
[365715278,1749845439098,-574.85,0.00022499,4]
[365715279,1749845439107,-574.85,0.00022499,4]
[365715280,1749845439117,-574.85,0.00022499,4]
[365715281,1749845439126,-574.85,0.00022499,4]
[365715282,1749845439136,-574.85,0.00022499,4]
[365715283,1749845439146,-574.85,0.00022499,4]
[365715284,1749845439156,-111817.6,0.000225,2]
[365715285,1749845439165,-4541.27,0.000225,7]
[365715286,1749845439174,-574.85,0.0002252,4]
[365715287,1749845439183,-1000.0,0.00022521,2]
[365715288,1749845439192,-500.0,0.00022521,2]
[365715289,1749845439202,-1046.32981503,0.00022521,2]
[365715290,1749845439211,-3119.30591631,0.00022521,7]
[365715291,1749845439221,-1392.0,0.00022525,2]
[365715292,1749845439230,-240.08573339,0.00022558,2]
[365715293,1749845439245,-3119.30591631,0.00022624,7]
[365715294,1749845439254,-835.28007164,0.00022643,2]
[365715295,1749845439264,-160.0,0.0002265,2]
[365715296,1749845439273,-213.24139183,0.0002265,2]
[365715297,1749845439282,-160.0,0.0002265,2]
[365715298,1749845439293,-160.0,0.0002265,2]
[365715299,1749845439303,-160.0,0.0002265,2]
[365715300,1749845439313,-1392.0,0.00022695,2]
[365715301,1749845439325,-3119.30591631,0.00022728,7]
[365715302,1749845439334,-5888.0,0.00022733,2]
[365715303,1749845439343,-160.0,0.00022737,2]
[365715304,1749845439353,-574.85,0.00022738,4]
[365715305,1749845439362,-574.85,0.00022738,4]
[365715306,1749845439372,-574.85,0.00022738,4]
[365715307,1749845439381,-574.85,0.00022738,4]
[365715308,1749845439390,-574.88945643,0.00022738,4]
[365715309,1749845439398,-500.0,0.00022738,5]
[365715310,1749845439407,-460.0,0.00022739,4]
[365715311,1749845439418,-460.0,0.00022739,4]
[365715312,1749845439427,-460.0,0.00022739,4]
[365715313,1749845439437,-460.0,0.00022739,4]
[365715314,1749845439447,-460.0,0.00022739,2]
[365715315,1749845439456,-460.0,0.00022739,4]
[365715316,1749845439466,-460.0,0.00022739,4]
[365715317,1749845439475,-460.0,0.00022739,4]
[365715318,1749845439484,-1821.36,0.00022739,4]
[365715319,1749845439496,-1165.77,0.00022739,4]
[365715320,1749845439505,-839.73,0.00022739,4]
[365715321,1749845439514,-460.0,0.00022739,4]
[365715322,1749845439523,-1933.14,0.00022739,4]
[365715323,1749845439532,-460.0,0.00022739,4]
[365715324,1749845439542,-460.0,0.00022739,4]
[365715325,1749845439551,-460.0,0.00022739,4]
[365715326,1749845439560,-682.28,0.00022739,4]
[365715327,1749845439569,-495.45,0.00022739,4]
[365715328,1749845439579,-460.0,0.00022739,4]
[365715329,1749845439588,-460.0,0.00022739,4]
[365715330,1749845439598,-460.0,0.00022739,4]
[365715331,1749845439607,-460.0,0.00022739,4]
[365715332,1749845439616,-924.35,0.00022739,4]
[365715333,1749845439712,-460.0,0.00022739,4]
[365715334,1749845439722,-781.06,0.00022739,4]
[365715335,1749845439731,-460.0,0.00022739,4]
[365715336,1749845439742,-1397.18,0.00022739,4]
[365715337,1749845439751,-460.0,0.00022739,4]
[365715338,1749845439760,-460.0,0.00022739,4]
[365715339,1749845439770,-460.0,0.00022739,4]
[365715340,1749845439779,-1142.35,0.00022739,4]
[365715341,1749845439789,-460.0,0.00022739,4]
[365715342,1749845439799,-6689.93,0.00022739,4]
[365715343,1749845439808,-460.0,0.00022739,4]
[365715344,1749845439817,-460.0,0.00022739,4]
[365715345,1749845439827,-1821.09,0.00022739,4]
[365715346,1749845439837,-460.0,0.00022739,4]
[365715347,1749845439847,-1133.49,0.00022739,4]
[365715348,1749845439856,-2189.69,0.00022739,4]
[365715349,1749845439866,-460.0,0.00022739,4]
[365715350,1749845439875,-170.69303325,0.00022739,4]
[365715351,1749845439884,-1115.91,0.00022739,4]
[365715352,1749845439894,-1392.0,0.00022767,2]
[365715353,1749845439903,-724.26915196,0.0002283,2]
[365715354,1749845439913,-5000.0,0.00022831,2]
[365715355,1749845439924,-151.0,0.00022831,2]
[365715356,1749845439935,-1688.0,0.00022831,2]
[365715357,1749845439943,-2968.1432389,0.00022831,2]
[365715358,1749845439953,-216.63087839,0.00022831,2]
[365715359,1749845439963,-500.0,0.00022831,2]
[365715360,1749845439972,-500.0,0.00022831,2]
[365715361,1749845439982,-500.0,0.00022831,2]
[365715362,1749845439992,-500.0,0.00022831,2]
[365715363,1749845440001,-500.0,0.00022831,2]
[365715364,1749845440010,-500.0,0.00022831,2]
[365715365,1749845440020,-500.0,0.00022831,2]
[365715366,1749845440030,-500.0,0.00022831,2]
[365715367,1749845440040,-500.0,0.00022831,2]
[365715368,1749845440049,-500.0,0.00022831,2]
[365715369,1749845440059,-500.0,0.00022831,2]
[365715370,1749845440068,-500.0,0.00022831,2]
[365715371,1749845440077,-500.0,0.00022831,2]
[365715372,1749845440087,-500.0,0.00022831,2]
[365715373,1749845440096,-500.0,0.00022831,2]
[365715374,1749845440106,-207.4,0.00022831,2]
[365715375,1749845440115,-151.0,0.00022831,2]
[365715376,1749845440125,-151.0,0.00022831,2]
[365715377,1749845440135,-151.0,0.00022831,2]
[365715378,1749845440146,-151.0,0.00022831,2]
[365715379,1749845440155,-151.0,0.00022831,2]
[365715380,1749845440165,-270.98328894,0.00022831,2]
[365715381,1749845440176,-3119.30591631,0.00022831,8]
[365715382,1749845440185,-1750.456,0.00022886,2]
[365715383,1749845440195,-3000.0,0.000229,2]
[365715384,1749845440204,-151.0,0.000229,6]
[365715385,1749845440214,-1392.0,0.00022905,2]
[365715386,1749845440223,-3000.0,0.0002291,2]
[365715387,1749845440234,-166.73694563,0.0002291,2]
[365715388,1749845440248,-3000.0,0.0002292,2]
[365715389,1749845440258,-1392.0,0.00022926,2]
[365715390,1749845440267,-3000.0,0.0002293,2]
[365715391,1749845440277,-3119.30591631,0.00022934,8]
[365715392,1749845440287,-3000.0,0.0002294,2]
[365715393,1749845440297,-1815.222872,0.00022941,2]
[365715394,1749845440307,-420.0,0.00022943,2]
[365715395,1749845440316,-3000.0,0.0002295,2]
[365715396,1749845440326,-1392.0,0.00022956,2]
[365715397,1749845440336,-310.26841365,0.00022958,2]
[365715399,1749845440347,-500.0,0.00022958,2]
[365715400,1749845440356,-3000.0,0.0002296,2]
[365715401,1749845440365,-3000.0,0.0002297,2]
[365715402,1749845440375,-500.0,0.00022973,2]
[365715403,1749845440385,-500.0,0.00022973,2]
[365715404,1749845440394,-500.91748917,0.00022973,2]
[365715405,1749845440404,-500.48958838,0.00022973,2]
[365715406,1749845440414,-500.0,0.00022973,2]
[365715407,1749845440423,-503.00566977,0.00022973,2]
[365715408,1749845440433,-500.0,0.00022973,2]
[365715409,1749845440443,-500.0,0.00022973,2]
[365715410,1749845440453,-500.0,0.00022973,2]
[365715411,1749845440463,-503.48503408,0.00022973,2]
[365715412,1749845440472,-500.0,0.00022973,2]
[365715413,1749845440482,-227.42880251,0.00022973,2]
[365715414,1749845440494,-304.63792749,0.00022973,2]
[365715415,1749845440503,-500.0,0.00022973,2]
[365715416,1749845440513,-500.0,0.00022973,2]
[365715417,1749845440526,-500.0,0.00022973,2]
[365715418,1749845440542,-500.0,0.00022973,2]
[365715419,1749845440557,-240.58970932,0.00022973,2]
[365715420,1749845440570,-500.0,0.00022973,2]
[365715421,1749845440584,-500.0,0.00022973,2]
[365715422,1749845440598,-500.0,0.00022973,2]
[365715423,1749845440612,-500.0,0.00022973,2]
[365715424,1749845440626,-500.0,0.00022973,2]
[365715425,1749845440641,-500.0,0.00022973,2]
[365715426,1749845440657,-501.03912607,0.00022973,2]
[365715427,1749845440671,-500.0,0.00022973,2]
[365715428,1749845440684,-500.0,0.00022973,2]
[365715429,1749845440697,-500.0,0.00022973,2]
[365715430,1749845440711,-500.0,0.00022973,2]
[365715431,1749845440725,-220.41741011,0.00022973,2]
[365715432,1749845440736,-500.0,0.00022973,2]
[365715433,1749845440751,-503.41766689,0.00022973,2]
[365715434,1749845440764,-500.0,0.00022973,2]
[365715435,1749845440777,-500.0,0.00022973,2]
[365715436,1749845440792,-600.0,0.00022973,2]
[365715437,1749845440806,-500.42355388,0.00022973,2]
[365715438,1749845440820,-3000.0,0.0002298,2]
[365715439,1749845440834,-3536.0,0.00022982,2]
[365715440,1749845440845,-3000.0,0.0002299,2]
[365715441,1749845440855,-3000.0,0.00023,2]
[365715442,1749845440869,-2167.0,0.00023,2]
[365715443,1749845440885,-143140.66,0.00023,7]
[365715444,1749845440896,-152.375438,0.00023,7]
[365715445,1749845440909,-3000.0,0.0002301,2]
[365715446,1749845440925,-431.295488,0.00023013,4]
[365715447,1749845440938,-460.0,0.00023013,4]
[365715448,1749845440950,-448.84569346,0.00023013,4]
[365715449,1749845440961,-460.0,0.00023013,4]
[365715450,1749845440973,-460.0,0.00023013,2]
[365715451,1749845440985,-460.0,0.00023013,4]
[365715452,1749845441003,-151.384546,0.00023013,7]
[365715453,1749845441015,-152.225194,0.00023013,7]
[365715454,1749845441027,-460.0,0.00023013,4]
[365715455,1749845441040,-151.0,0.00023013,7]
[365715456,1749845441052,-151.0,0.00023013,7]
[365715457,1749845441064,-460.0,0.00023013,4]
[365715458,1749845441076,-1821.36,0.00023013,4]
[365715459,1749845441088,-1165.77,0.00023013,4]
[365715460,1749845441100,-839.73,0.00023013,4]
[365715461,1749845441112,-460.0,0.00023013,4]
[365715462,1749845441124,-1933.14,0.00023013,4]